bitfinex-derivatives/quotes_ETHF0:USTF0_20251009
["timestamp","ask_amount","ask_price","bid_price","bid_amount"]
[1760023264073,0.64804,4335.2,4335.1,0.9843]
[1760023264269,0.233,4335.2,4335.1,0.9843]
[1760023264671,0.41502,4335.4,4335.2,1.39933]
[1760023264867,0.41502,4335.4,4335.2,0.41503]
[1760023264868,0.233,4335.3,4335.2,0.41503]
[1760023265074,1.23869202,4335.8,4335.6,0.415]
[1760023265274,0.415,4335.6,4335.2,3.2078]
[1760023265480,1.3926,4335.6,4335.4,1.39931]
[1760023265673,2.21629202,4335.9,4335.7,0.41499]
[1760023265976,0.233,4335.8,4335.7,0.9843]
[1760023266178,1.2106,4335.8,4335.7,0.9843]
[1760023266379,0.41501,4335.5,4335.3,0.9843]
[1760023266569,0.9776,4335.3,4334.6,42.82201]
[1760023266772,0.9776,4335.3,4335.2,0.41503]
[1760023267069,1.2106,4335.4,4335.2,1.39933]
[1760023267578,1.2106,4335.4,4335.3,0.9843]
[1760023268181,3.2078,4335.5,4335.4,1.39932]
[1760023268380,4.83341,4335.5,4334.6,40.8]
[1760023268683,0.9776,4335.8,4335.5,0.9843]
[1760023268883,1.39262,4335.4,4335.2,1.39933]
[1760023269075,0.233,4335.3,4335.2,1.39933]
[1760023269471,0.9776,4335.4,4335.2,1.39933]
[1760023269680,0.233,4335.3,4335.2,1.39933]
[1760023269878,0.9776,4335.4,4335.3,0.9843]
[1760023270082,1.2106,4335.4,4335.3,0.9843]
[1760023271983,0.233,4335.4,4335.3,0.9843]
[1760023272176,0.41501,4335.5,4335.4,0.41502]
[1760023272374,0.64801,4335.5,4335.4,1.39932]
[1760023272885,1.60731,4335.5,4335.4,1.39932]
[1760023273282,1.60731,4335.5,4335.4,0.9843]
[1760023273478,2.16586457,4335.5,4335.4,0.9843]
[1760023274581,2.16586457,4335.5,4335.4,1.39932]
[1760023274781,2.16586457,4335.5,4335.4,0.9843]
[1760023274981,0.41504,4335.1,4335.0,0.8996]
[1760023275183,0.9593,4334.9,4334.8,0.41507]
[1760023275379,1.51785457,4334.9,4334.8,1.31467]
[1760023276284,1.37436,4334.9,4334.8,1.31467]
[1760023276485,1.37436,4334.9,4334.6,40.8]
[1760023276486,1.51839113,4334.9,4334.6,40.8]
[1760023276686,0.9593,4334.3,4334.0,0.00197275]
[1760023276884,1.1923,4334.2,4334.1,0.8996]
[1760023277086,3.2078,4334.8,4334.5,0.3806]
[1760023277281,0.79211651,4334.7,4334.6,1.31469]
[1760023277481,4.44649202,4335.3,4335.1,0.41504]
[1760023277482,3.2078,4335.3,4335.1,0.41504]
[1760023277687,0.5589461,4335.2,4335.1,1.31464]
[1760023277881,0.7919461,4335.2,4335.1,1.31464]
[1760023278086,0.5589461,4335.2,4335.1,1.31464]
[1760023278286,0.233,4335.2,4335.1,0.41504]
[1760023278588,0.233,4335.2,4335.1,1.31464]
[1760023278987,0.233,4335.2,4335.1,42.11464]
[1760023279688,0.41498,4335.8,4335.1,42.11464]
[1760023279689,3.2078,4335.9,4335.8,0.8996]
[1760023279992,0.41503,4335.3,4335.1,40.8]
[1760023280189,0.41503,4335.3,4335.2,0.8996]
[1760023280384,0.64803,4335.3,4335.2,0.8996]
[1760023280583,0.233,4335.3,4335.2,0.8996]
[1760023280994,0.41499,4335.8,4335.2,0.8996]
[1760023281195,0.55896846,4335.7,4335.6,1.6928]
[1760023281391,0.79196846,4335.7,4335.6,2.6699]
[1760023282383,0.55896846,4335.7,4335.6,2.6699]
[1760023282585,3.2078,4336.4,4336.3,1.2778]
[1760023282788,3.99971607,4336.4,4336.3,2.2549]
[1760023282990,0.55891607,4336.4,4336.3,2.2549]
[1760023283194,0.0025472,4336.9,4336.8,0.9771]
[1760023283398,0.2355472,4336.9,4336.8,0.9771]
[1760023283592,1.75949739,4336.9,4336.8,0.9771]
[1760023283796,0.2355472,4336.9,4336.8,0.9771]
[1760023283995,0.0025472,4336.9,4336.8,0.9771]
[1760023284395,0.2355472,4336.9,4336.8,0.9771]
[1760023284792,0.0025472,4336.9,4336.8,0.9771]
[1760023285091,0.2355472,4336.9,4336.8,0.9771]
[1760023285690,0.0025472,4336.9,4336.8,4.1849]
[1760023286189,0.0025472,4336.9,4336.8,5.87758]
[1760023286394,0.0025472,4336.9,4336.8,46.67758]
[1760023286588,1.3827172,4336.9,4336.8,40.8]
[1760023286895,0.9653,4336.1,4336.0,4.1849]
[1760023287090,1.1983,4336.1,4336.0,4.1849]
[1760023287392,0.233,4336.1,4335.9,0.41496]
[1760023287691,3.2103472,4336.9,4336.7,0.9771]
[1760023287899,3.2103472,4336.9,4336.8,0.9771]
[1760023288098,3.4433472,4336.9,4336.8,0.9771]
[1760023288789,4.4086472,4336.9,4336.8,0.9771]
[1760023289500,1.2008472,4336.9,4336.8,0.9771]
[1760023290093,0.2355472,4336.9,4336.8,0.9771]
[1760023290293,0.0025472,4336.9,4336.8,0.9771]
[1760023290496,0.2355472,4336.9,4336.8,0.9771]
[1760023290798,0.0025472,4336.9,4336.8,0.9771]
[1760023291593,0.0025472,4336.9,4336.8,41.7771]
[1760023293299,0.0025472,4336.9,4336.8,44.9849]
[1760023294999,0.0025472,4336.9,4336.8,45.39978]
[1760023295390,0.4174172,4336.9,4336.8,44.9849]
[1760023295597,1.3827172,4336.9,4336.8,44.0078]
[1760023296099,0.4174172,4336.9,4336.8,44.9849]
[1760023296294,0.9678472,4336.9,4336.8,41.7771]
[1760023296890,0.0025472,4336.9,4336.8,41.7771]
[1760023297295,0.2355472,4336.9,4336.8,41.7771]
[1760023297498,1.2008472,4336.9,4336.8,41.7771]
[1760023298807,0.2355472,4336.9,4336.8,41.7771]
[1760023299210,0.0025472,4336.9,4336.8,44.9849]
[1760023301108,0.0025472,4336.9,4336.8,49.9849]
[1760023302401,0.0025472,4336.9,4336.8,44.9849]
[1760023303209,0.59922,4337.5,4337.4,1.2214]
[1760023303404,0.1844,4337.5,4337.4,5.75792]
[1760023303610,0.64779,4337.8,4337.7,2.5501]
[1760023303811,0.64779,4337.8,4337.7,2.1353]
[1760023304409,2.52722396,4337.8,4337.7,0.6115098]
[1760023304604,2.76022396,4337.8,4337.7,1.5489098]
[1760023304811,2.76022396,4337.8,4337.4,3.2078]
[1760023304812,0.3854,4337.5,4336.8,44.9452]
[1760023305009,0.9366,4336.9,4336.8,45.36008]
[1760023305207,1.1696,4336.9,4336.8,45.36008]
[1760023305407,0.233,4336.9,4336.8,45.36008]
[1760023305707,0.41484,4337.3,4336.8,44.0078]
[1760023306010,1.03971396,4337.8,4337.7,0.9374]
[1760023306011,0.00273396,4337.8,4337.7,0.9374]
[1760023306511,0.00273396,4337.8,4337.7,41.7374]
[1760023308807,1.17233396,4337.8,4337.7,41.7374]
[1760023309004,1.17233396,4337.8,4337.7,40.8]
[1760023309408,1.7297195,4337.8,4337.7,40.8]
[1760023310011,0.6064,4337.3,4337.2,1.5738]
[1760023310206,1.02127,4337.0,4336.9,0.6364]
[1760023310419,1.02127,4337.0,4336.9,40.8]
[1760023310420,0.64787,4337.0,4336.9,40.8]
[1760023310623,1.58447,4337.0,4336.9,40.8]
[1760023310910,0.233,4337.0,4336.9,41.7374]
[1760023311112,0.4148,4337.7,4337.5,0.3789]
[1760023311318,1.1696,4337.6,4337.5,0.9374]
[1760023311515,0.79094845,4337.6,4337.3,0.9374]
[1760023311710,0.233,4337.6,4337.2,0.41484]
[1760023311942,0.9366,4337.5,4337.3,0.9374]
[1760023312147,0.9366,4337.5,4337.2,0.41484]
[1760023312321,0.41483,4337.4,4337.3,0.9374]
[1760023313115,1.90977695,4337.4,4337.3,0.9374]
[1760023313519,0.41485,4337.1,4336.9,41.21486]
[1760023313815,1.73686,4337.0,4336.9,40.8]
[1760023314215,0.9366,4337.0,4336.9,41.7374]
[1760023314412,1.35144,4337.2,4337.1,0.9374]
[1760023314721,1.9098903,4337.2,4337.1,0.9374]
[1760023314924,2.1428903,4337.2,4337.1,0.9374]
[1760023315416,1.35146,4337.0,4336.9,41.7374]
[1760023315823,1.58446,4337.0,4336.9,41.7374]
[1760023316212,4.7508,4337.4,4337.3,1.63273]
[1760023316418,4.7508,4337.4,4337.3,2.57013]
[1760023316419,0.79147686,4337.4,4337.3,2.57013]
[1760023316724,1.39787686,4337.4,4337.3,2.1553]
[1760023317614,0.79147686,4337.4,4337.3,2.1553]
[1760023317812,0.00273396,4337.8,4337.6,0.9374]
[1760023318016,0.233,4337.7,4337.6,1.3522]
[1760023318317,0.00273396,4337.8,4337.6,1.3522]
[1760023318513,0.41752396,4337.8,4337.6,0.4148]
[1760023318717,0.233,4337.7,4337.6,0.4148]
[1760023318914,0.4148,4337.6,4337.5,0.3789]
[1760023319130,1.91006333,4337.6,4337.5,0.9374]
[1760023319318,0.41483,4337.3,4337.2,0.9374]
[1760023319515,0.97356334,4337.3,4337.2,0.9374]
[1760023319718,1.35147,4336.9,4336.8,0.00269967]
[1760023319923,1.58447,4336.9,4336.8,0.94009967]
[1760023320321,1.35147,4336.9,4336.8,0.94009967]
[1760023320524,1.58447,4336.9,4336.8,0.94009967]
[1760023320918,0.9366,4337.3,4336.9,1.35227]
[1760023321222,1.03696,4337.9,4336.8,0.00269967]
[1760023321223,0.41486,4337.1,4337.0,0.9374]
[1760023321419,1.35147,4336.9,4336.8,0.00269967]
[1760023321616,1.9102344,4336.9,4336.8,0.00269967]
[1760023323031,11.69869886,4336.9,4335.9,0.41497]
[1760023323321,11.69869886,4336.9,4335.5,3.5867]
[1760023323322,0.415,4335.6,4335.5,3.2078]
[1760023323529,1.5846,4335.6,4335.5,3.2078]
[1760023323732,0.41505,4335.1,4334.9,4.1452]
[1760023324023,1.1696,4335.0,4334.9,4.14695294]
[1760023324229,1.1696,4335.0,4334.9,3.20955294]
[1760023324621,1.555,4335.0,4334.9,0.00175294]
[1760023324930,1.1696,4335.0,4334.9,0.00175294]
[1760023325122,1.1696,4335.0,4334.9,0.93915294]
[1760023325327,0.9366,4335.0,4334.9,0.93915294]
[1760023325526,1.1696,4335.0,4334.9,0.93915294]
[1760023325921,0.9366,4335.8,4335.4,0.41501]
[1760023326121,3.5932,4336.5,4335.6,0.9374]
[1760023326425,3.5932,4336.5,4336.4,1.35232]
[1760023326426,3.2078,4336.5,4336.4,1.35232]
[1760023326627,3.4408,4336.5,4336.4,1.35232]
[1760023326927,3.62267,4337.0,4336.1,1.03738]
[1760023327124,3.2078,4337.0,4336.9,0.9374]
[1760023327429,3.4408,4337.0,4336.9,0.9374]
[1760023327726,4.3774,4337.0,4336.9,0.9374]
[1760023328620,4.1444,4337.0,4336.9,0.9374]
[1760023329025,1.1696,4337.0,4336.9,0.9374]
[1760023329325,0.41494,4336.2,4336.0,3.2078]
[1760023329525,4.1444,4336.8,4336.0,4.5241]
[1760023329725,0.9366,4337.3,4337.0,0.41486]
[1760023329926,0.233,4337.1,4337.0,1.35226]
[1760023330230,0.9366,4337.1,4337.0,0.9374]
[1760023330426,0.1844,4337.2,4337.1,0.41485]
[1760023330627,0.1844,4337.2,4337.1,4.56005]
[1760023330830,0.1844,4337.2,4337.1,0.9374]
[1760023331130,0.1844,4337.2,4336.9,0.41487]
[1760023331326,0.9366,4337.1,4337.0,0.41486]
[1760023331631,0.9366,4336.9,4336.8,0.9374]
[1760023331834,1.1696,4336.9,4336.8,0.9374]
[1760023332026,1.121,4337.2,4336.7,40.8]
[1760023332233,0.233,4337.1,4337.0,0.9374]
[1760023332925,0.1844,4337.2,4337.1,1.31195]
[1760023333129,0.4174,4337.2,4337.1,1.31195]
[1760023333328,0.1844,4337.2,4337.1,4.51975]
[1760023333533,0.4174,4337.2,4337.1,4.51975]
[1760023334035,0.4174,4337.2,4337.1,0.8971]
[1760023334235,0.41486,4337.0,4336.8,0.41488]
[1760023334529,0.9048,4336.9,4336.8,0.8971]
[1760023334731,0.9048,4336.7,4336.6,3.2078]
[1760023334943,1.1378,4336.7,4336.6,3.2078]
[1760023335134,0.233,4336.7,4336.6,4.1049]
[1760023335437,0.233,4336.7,4336.6,0.8971]
[1760023335638,0.1844,4337.2,4337.0,0.3634]
[1760023335833,0.1844,4337.2,4337.1,1.31195]
[1760023336033,0.4174,4337.2,4337.1,4.51975]
[1760023336937,1.3222,4337.2,4337.1,3.2078]
[1760023337239,1.3222,4337.2,4336.6,4.1049]
[1760023337436,0.4174,4337.2,4336.6,3.2078]
[1760023337630,0.9048,4336.8,4336.6,4.5198]
[1760023337835,0.233,4336.7,4336.6,4.5198]
[1760023338036,1.31968,4336.8,4336.6,3.2078]
[1760023338236,0.9048,4336.7,4336.6,3.2078]
[1760023338438,1.1378,4336.7,4336.6,3.2078]
[1760023338637,1.1378,4336.7,4336.6,4.1049]
[1760023339937,1.1378,4336.7,4336.6,3.2078]
[1760023340442,0.233,4336.7,4336.6,4.1049]
[1760023340631,1.0892,4337.2,4336.8,0.41488]
[1760023340632,0.41487,4337.0,4336.8,0.41488]
[1760023340838,0.233,4336.9,4336.8,0.41488]
[1760023341034,0.3439,4337.5,4337.0,0.41485]
[1760023341343,0.41485,4337.2,4337.1,1.31195]
[1760023342140,0.9048,4337.6,4337.5,0.8971]
[1760023342332,0.9048,4338.1,4337.5,0.41481]
[1760023342539,0.41481,4337.6,4337.5,0.41481]
[1760023342739,0.41481,4337.6,4337.5,1.31191]
[1760023342938,0.41481,4337.6,4337.5,42.11191]
[1760023343236,0.233,4337.7,4337.6,0.8971]
[1760023344337,0.233,4337.7,4337.6,1.3119]
[1760023344544,0.6478,4337.7,4337.6,1.3119]
[1760023344736,0.6478,4337.7,4337.6,0.8971]
[1760023345945,0.00273396,4337.8,4337.7,1.3119]
[1760023346137,0.23573396,4337.8,4337.7,1.3119]
[1760023346338,0.23573396,4337.8,4337.5,40.8]
[1760023346639,0.23573396,4337.8,4337.6,0.8971]
[1760023346838,0.00273396,4337.8,4337.7,1.3119]
[1760023347144,0.65052396,4337.8,4337.7,0.8971]
[1760023347343,0.65052396,4337.8,4337.7,1.3119]
[1760023347639,1.3196,4337.6,4337.5,41.6971]
[1760023347936,1.2487,4337.5,4336.9,3.2078]
[1760023348141,0.41486,4337.0,4336.9,4.51977]
[1760023348344,1.55266,4337.0,4336.9,4.1049]
[1760023349148,0.9048,4336.9,4336.7,0.41489]
[1760023349441,0.41488,4336.8,4336.6,40.8]
[1760023349642,0.9048,4336.7,4336.6,40.8]
[1760023350143,0.9048,4336.5,4336.4,3.2078]
[1760023350439,0.41497,4336.0,4335.8,3.2078]
[1760023350643,0.41502,4335.5,4335.3,4.1049]
[1760023350844,0.233,4335.4,4335.3,4.1049]
[1760023351046,0.233,4335.4,4335.3,44.9049]
[1760023352046,0.41496,4336.0,4335.3,44.0078]
[1760023352340,1.31976,4336.0,4335.9,0.8971]
[1760023352546,0.9048,4335.7,4335.6,0.8971]
[1760023353250,0.9048,4335.7,4335.3,44.42282]
[1760023353251,1.31981,4335.5,4335.3,44.9049]
[1760023353437,0.233,4335.4,4335.3,44.9049]
[1760023355242,0.41498,4335.8,4335.3,44.9049]
[1760023355444,0.9048,4336.6,4336.3,0.8971]
[1760023355645,0.79030457,4336.5,4336.2,0.41493]
[1760023355845,0.55730457,4336.4,4336.3,0.8971]
[1760023356043,1.87703457,4336.4,4336.3,0.8971]
[1760023356945,0.55730457,4336.4,4336.3,0.8971]
[1760023357246,0.233,4336.4,4336.3,0.8971]
[1760023358038,1.2487,4337.0,4336.1,0.8971]
[1760023358245,1.69526956,4336.9,4336.5,0.41491]
[1760023358441,0.55746956,4336.8,4336.6,0.8971]
[1760023358744,0.9048,4336.8,4336.6,0.8971]
[1760023359047,1.3197,4336.7,4336.6,0.8971]
[1760023360646,0.64789,4336.7,4336.6,0.8971]
[1760023361050,1.3196,4337.7,4337.4,0.41482]
[1760023361241,0.233,4337.6,4337.5,1.31191]
[1760023361647,0.233,4337.6,4337.5,42.11191]
[1760023362660,3.21053396,4337.8,4337.7,0.8935]
[1760023362845,3.44353396,4337.8,4337.7,0.8935]
[1760023363351,3.21053396,4337.8,4337.7,0.8935]
[1760023363547,4.35233396,4337.8,4337.7,0.8935]
[1760023363744,4.35233396,4337.8,4337.5,40.8]
[1760023363745,0.4148,4337.7,4337.5,40.8]
[1760023364051,0.9088,4337.6,4337.5,40.8]
[1760023364251,3.62793396,4337.8,4337.2,0.41484]
[1760023364446,0.41482,4337.5,4337.4,0.8935]
[1760023364746,0.4149,4336.6,4336.4,4.1292]
[1760023364952,0.4149,4336.6,4335.5,0.3632]
[1760023364953,0.41495,4336.1,4335.9,3.62276]
[1760023365248,0.8502,4336.1,4336.0,41.7214]
[1760023365444,1.0832,4336.1,4336.0,41.7214]
[1760023367448,0.8502,4337.2,4336.9,0.41486]
[1760023367750,0.41485,4337.2,4337.0,0.3421]
[1760023367947,1.03733396,4337.8,4337.0,0.3421]
[1760023368144,3.4408,4337.1,4337.0,1.2635]
[1760023368843,0.41484,4337.2,4337.0,1.2635]
[1760023369050,5.28212396,4337.8,4337.2,0.41484]
[1760023369250,0.79016437,4337.7,4337.2,0.41484]
[1760023369445,0.8502,4337.5,4337.3,0.9214]
[1760023369848,0.233,4337.4,4337.3,0.9214]
[1760023370049,3.39493396,4337.8,4337.0,0.3421]
[1760023370252,0.97193873,4337.7,4337.1,0.9214]
[1760023370548,0.233,4337.7,4337.3,0.9214]
[1760023370747,0.8502,4337.6,4337.4,40.8]
[1760023370951,1.26501,4337.6,4337.5,0.9214]
[1760023371251,1.49801,4337.6,4337.5,0.9214]
[1760023371454,1.26501,4337.6,4337.5,0.9214]
[1760023371654,1.49801,4337.6,4337.5,0.9214]
[1760023372444,1.49801,4337.6,4337.4,40.8]
[1760023372445,0.64781,4337.6,4337.4,40.8]
[1760023372645,0.41491,4336.6,4336.4,4.54411]
[1760023372848,0.233,4336.5,4336.4,4.54411]
[1760023373256,0.8502,4337.1,4336.6,0.9214]
[1760023373456,0.4149,4336.7,4336.6,0.9214]
[1760023373952,1.2651,4336.7,4336.6,0.9214]
[1760023374153,0.233,4337.0,4336.4,3.2078]
[1760023374154,1.26511,4336.5,4336.4,3.2078]
[1760023374354,1.49811,4336.5,4336.4,3.2078]
[1760023374749,1.49811,4336.5,4336.4,4.1292]
[1760023375452,0.64791,4336.5,4336.4,4.1292]
[1760023375656,0.4149,4336.7,4336.5,0.757]
[1760023375855,0.4149,4336.7,4336.6,1.3363]
[1760023376058,0.6479,4336.7,4336.6,1.3363]
[1760023377057,0.6479,4336.7,4336.6,0.9214]
[1760023377252,0.4149,4336.7,4336.6,1.3363]
[1760023377747,0.6479,4336.7,4336.6,1.3363]
[1760023378160,0.4149,4336.7,4336.6,1.3363]
[1760023378658,0.6479,4336.7,4336.6,0.9214]
[1760023379461,0.4149,4336.7,4336.6,0.9214]
[1760023379658,0.6479,4336.7,4336.6,0.9214]
[1760023379859,0.6479,4336.7,4336.6,1.3363]
[1760023380056,0.41488,4336.9,4336.5,0.3421]
[1760023380251,0.41489,4336.7,4336.6,0.4149]
[1760023380457,0.4149,4336.6,4336.5,0.3421]
[1760023380660,1.26511,4336.5,4336.4,3.2078]
[1760023381054,1.26511,4336.5,4336.4,4.1292]
[1760023381357,2.46957,4335.9,4335.8,5.2723]
[1760023381659,2.70257,4335.9,4335.8,5.2723]
[1760023381854,1.23957,4335.9,4335.8,46.0723]
[1760023382056,1.23957,4335.9,4335.8,46.48728]
[1760023382249,0.8246,4335.9,4335.8,46.48728]
[1760023382458,0.233,4335.9,4335.8,46.48728]
[1760023382657,0.64797,4335.9,4335.8,46.48728]
[1760023383062,0.233,4335.9,4335.8,46.48728]
[1760023384659,1.0065,4336.6,4336.5,2.0645]
[1760023384857,1.2395,4336.6,4336.5,2.0645]
[1760023385060,2.0897,4336.6,4336.5,2.0645]
[1760023385457,3.2078,4337.2,4336.5,2.0645]
[1760023385458,3.2078,4337.2,4336.6,2.0645]
[1760023385662,3.4408,4337.2,4336.6,2.0645]
[1760023385959,3.85565,4337.2,4336.6,42.8645]
[1760023386166,0.233,4336.9,4336.6,42.8645]
[1760023387558,0.41485,4337.2,4336.6,42.8645]
[1760023387559,0.233,4337.0,4336.6,42.8645]
[1760023387861,0.233,4337.1,4336.6,42.8645]
[1760023388265,0.41484,4337.3,4336.6,42.8645]
[1760023388861,0.159,4337.1,4336.6,42.8645]
[1760023389264,0.57385,4337.1,4336.6,42.8645]
[1760023389461,0.159,4337.1,4336.6,42.8645]
[1760023390566,0.233,4337.3,4336.6,42.8645]
[1760023391062,0.64784,4337.3,4336.6,42.8645]
[1760023391263,1.2676,4336.7,4336.6,41.7214]
[1760023391466,1.2676,4336.7,4336.6,40.8]
[1760023391765,0.74341424,4336.7,4336.6,2.0645]
[1760023391966,0.1844,4336.7,4336.6,2.0645]
[1760023392165,0.1844,4336.7,4336.6,42.8645]
[1760023395667,0.00273396,4337.8,4337.7,2.0671]
[1760023395962,3.2078,4338.7,4338.5,1.5781]
[1760023396167,0.55885165,4338.6,4338.5,1.5781]
[1760023396462,3.2078,4338.7,4338.5,42.79281]
[1760023396661,3.2078,4338.7,4338.6,2.0671]
[1760023396962,0.41464,4339.3,4339.2,2.0671]
[1760023397162,1.2135406,4339.3,4339.2,2.0671]
[1760023397664,2.0823406,4339.3,4339.2,2.0671]
[1760023398161,0.0020006,4339.3,4339.2,2.0671]
[1760023400458,7.0103006,4339.3,4338.7,0.8572]
[1760023400765,2.42299,4338.8,4338.7,0.6182]
[1760023400966,2.65599,4338.8,4338.7,0.6182]
[1760023401164,0.8688,4338.7,4338.6,0.00221412]
[1760023401665,5.8688,4338.7,4338.6,0.00221412]
[1760023402469,0.8688,4337.7,4337.6,4.065]
[1760023402665,1.1018,4337.7,4337.6,3.2078]
[1760023403064,1.1018,4337.7,4337.6,4.065]
[1760023403270,0.8688,4337.7,4337.6,4.065]
[1760023403473,1.1018,4337.7,4337.6,4.06797987]
[1760023403664,1.1018,4337.7,4337.6,3.21077987]
[1760023404068,1.1018,4337.7,4337.6,4.06797987]
[1760023404570,1.1018,4337.7,4337.6,3.21077987]
[1760023404865,0.233,4337.7,4337.6,4.06797987]
[1760023405270,0.41479,4337.8,4337.6,4.06797987]
[1760023405466,0.233,4337.7,4337.6,3.21077987]
[1760023406166,0.233,4337.7,4337.6,2.07007987]
[1760023407769,1.6657,4337.7,4337.6,2.07007987]
[1760023409258,2.2413,4337.7,4337.6,2.07007987]
[1760023409461,0.5639,4338.1,4338.0,2.0671]
[1760023409774,0.41475,4338.2,4338.1,2.0671]
[1760023410067,0.41475,4338.3,4338.2,2.0671]
[1760023410265,0.64775,4338.3,4338.2,2.0671]
[1760023410668,2.08045,4338.3,4338.2,2.0671]
[1760023410865,2.65605,4338.3,4338.2,2.0671]
[1760023413665,0.4148,4337.7,4337.6,0.00297987]
[1760023413869,2.6561,4337.7,4337.6,0.00297987]
[1760023414569,2.6561,4337.7,4337.6,0.62117987]
[1760023415162,0.41477,4338.0,4337.9,2.0671]
[1760023415366,0.64777,4338.0,4337.9,2.0671]
[1760023415572,1.39602,4338.5,4337.6,3.21077987]
[1760023415573,0.41476,4338.1,4338.0,2.48186]
[1760023415766,0.64776,4338.1,4338.0,2.85006]
[1760023415968,0.64776,4338.1,4338.0,2.4353]
[1760023416167,1.21166,4338.1,4338.0,2.4353]
[1760023416368,1.4327,4337.7,4337.6,4.68617987]
[1760023416572,2.6561,4337.7,4337.6,3.21077987]
[1760023416773,2.6561,4337.7,4337.6,3.82897987]
[1760023417477,2.6561,4337.7,4337.6,0.00297987]
[1760023417478,8.2139406,4337.7,4337.6,0.00297987]
[1760023418078,3.2139406,4337.7,4337.6,0.00297987]
[1760023418280,2.9809406,4337.7,4337.6,0.00297987]
[1760023418579,3.2139406,4337.7,4337.6,0.00297987]
[1760023419078,2.9809406,4337.7,4337.6,0.62117987]
[1760023419275,3.2139406,4337.7,4337.6,0.62117987]
[1760023419880,3.2139406,4337.7,4337.6,0.00297987]
[1760023420680,2.42319,4336.7,4336.6,0.6182]
[1760023420872,1.03735,4336.3,4335.4,4.065]
[1760023421075,0.8688,4335.5,4335.4,4.065]
[1760023421373,1.1018,4335.5,4335.4,3.2078]
[1760023421779,1.10379374,4335.5,4335.4,44.00949976]
[1760023422174,4.67079374,4335.5,4335.4,40.80169976]
[1760023422482,4.67079374,4335.5,4335.4,0.00169976]
[1760023423575,0.41502,4335.4,4334.3,3.2078]
[1760023423781,0.885,4334.5,4334.4,41.6661]
[1760023423980,1.118,4334.5,4334.4,41.6661]
[1760023424678,1.8889,4334.5,4334.4,0.00219979]
[1760023424881,1.8889,4334.5,4333.5,0.8366]
[1760023424882,0.41516,4333.9,4333.5,0.8366]
[1760023425084,0.8982,4333.2,4332.9,0.0230795]
[1760023425276,1.1312,4333.1,4332.9,0.8596795]
[1760023425478,0.8982,4333.0,4332.9,0.0230795]
[1760023425785,0.41529,4332.6,4332.2,4.0444]
[1760023425980,0.233,4332.5,4332.3,0.8366]
[1760023426185,0.233,4332.4,4332.3,0.8366]
[1760023426480,0.0028619,4332.4,4332.3,0.8366]
[1760023426984,1.1340619,4332.4,4332.3,0.8366]
[1760023427181,1.31351,4332.3,4332.2,0.00265103]
[1760023427680,1.31351,4332.3,4332.2,0.83925103]
[1760023428078,0.8982,4332.3,4332.2,0.83925103]
[1760023428277,1.1312,4332.3,4332.2,0.83925103]
[1760023428984,0.0028619,4332.4,4332.3,0.8366]
[1760023429281,0.0028619,4332.4,4332.2,0.00265103]
[1760023429282,0.8982,4332.3,4332.2,0.00265103]
[1760023429480,1.31358,4331.6,4331.5,3.2078]
[1760023429780,0.8982,4331.2,4331.1,40.8]
[1760023430187,0.8982,4331.4,4331.3,0.8366]
[1760023430482,1.1312,4331.4,4331.3,0.83842935]
[1760023430986,4.106,4331.7,4331.6,0.8366]
[1760023431186,4.339,4331.7,4331.6,0.8366]
[1760023431681,0.8982,4331.5,4331.3,0.83842935]
[1760023432082,1.1312,4331.4,4331.3,0.83842935]
[1760023432276,1.1312,4331.4,4331.3,0.00182935]
[1760023433083,0.8982,4331.6,4331.5,0.8366]
[1760023433282,0.64839,4331.6,4331.3,0.00182935]
[1760023433485,0.8982,4331.5,4331.3,0.83842935]
[1760023433682,0.8982,4331.5,4331.4,1.252]
[1760023433881,0.8982,4331.5,4331.3,0.00182935]
[1760023433882,1.1312,4331.5,4331.3,0.00182935]
[1760023434185,0.8982,4331.4,4331.3,0.00182935]
[1760023434379,3.2078,4331.7,4331.6,0.8366]
[1760023434380,0.8982,4331.7,4331.6,0.8366]
[1760023434588,0.233,4331.7,4331.6,0.8366]
[1760023434892,1.1312,4331.7,4331.6,0.8366]
[1760023435284,0.1846,4332.0,4331.9,1.25195]
[1760023435481,0.4176,4332.0,4331.9,0.8366]
[1760023435783,0.8982,4331.9,4331.6,1.25198]
[1760023435985,0.8982,4331.9,4331.6,0.41538]
[1760023436488,0.41537,4331.7,4331.4,0.4154]
[1760023436789,0.8982,4331.5,4331.4,1.252]
[1760023437484,0.8982,4331.5,4331.3,3.20962935]
[1760023437694,0.8982,4331.4,4331.3,3.20962935]
[1760023439590,0.8982,4331.4,4331.3,4.04622935]
[1760023439790,0.233,4331.4,4331.3,4.04622935]
[1760023439993,0.8982,4331.6,4331.5,1.25198]
[1760023440384,0.8982,4331.8,4331.4,0.8366]
[1760023440591,0.8982,4331.8,4331.3,3.20962935]
[1760023440592,0.233,4331.6,4331.5,1.25199]
[1760023440985,0.1846,4331.9,4331.8,0.41536]
[1760023441186,0.4176,4331.9,4331.8,1.25196]
[1760023441992,0.4176,4331.9,4331.8,42.05196]
[1760023442489,4.106,4332.3,4332.2,0.41532]
[1760023442790,0.0028619,4332.4,4332.3,0.8366]
[1760023442989,0.2358619,4332.4,4332.3,0.8366]
[1760023443692,0.8982,4332.3,4331.3,3.20962935]
[1760023443894,0.3558,4331.5,4331.3,3.20962935]
[1760023444089,1.1312,4331.4,4331.3,4.04622935]
[1760023444289,1.1312,4331.4,4331.3,44.00962935]
[1760023444989,1.1312,4331.4,4331.3,0.00182935]
[1760023445991,9.07917099,4331.4,4331.3,0.00182935]